fUSD/lending_fUSD_20251217
["ID","MTS","AMOUNT","RATE_DAILY","PERIOD"]
[398902728,1765983047496,-2710.59423691,0.00019,2]
[398902729,1765983047510,-3354.35483825,0.00019,2]
[398902730,1765983047641,-262.02976442,0.00019,2]
[398902731,1765983047671,-5426.82916256,0.00019,2]
[398902732,1765983047684,-17454.17854076,0.00019,2]
[398902733,1765983047697,-3115.64886344,0.00019,2]
[398902734,1765983047708,-23332.34946227,0.00019,2]
[398902735,1765983047720,-1368.08453927,0.00019,2]
[398902736,1765983047738,-8963.955,0.00019,2]
[398902737,1765983047757,-1048.35634291,0.00019,2]
[398902738,1765983047769,-15173.2785,0.00019,2]
[398902739,1765983048021,-3430.81587274,0.00017189,2]
[398902740,1765983048035,-3093.18412726,0.00017189,2]
[398902741,1765983048044,-19122.19500962,0.00019,2]
[398902742,1765983048058,-410.39994,0.00019,2]
[398902743,1765983048069,-302.0,0.00019,2]
[398902744,1765983048081,-475.52571627,0.00019,2]
[398902745,1765983048093,-5744.36452271,0.00019,2]
[398902746,1765983048154,-1016.0235754,0.00019,2]
[398902747,1765983048278,-658.77,0.00018386,2]
[398902748,1765983048288,-202.42763868,0.000189,3]
[398902749,1765983048298,-970.76236132,0.00019,2]
[398902750,1765983048312,-4156.83662609,0.00019,2]
[398902751,1765983048325,-138120.27311169,0.00019,2]
[398902752,1765983048343,-361.17075883,0.00019,2]
[398902753,1765983048356,-385067.79371465,0.00019,2]
[398902754,1765983048373,-2434.08,0.00019,2]
[398902755,1765983048388,-42367.56793632,0.00019,2]
[398902758,1765983255329,300.0,0.00015342,3]
[398902759,1765983434123,514.57,0.0001549,3]
[398902762,1765983962661,3838.38,7.774e-05,2]
[398902763,1765983962870,3838.38,8.183e-05,2]
[398902764,1765983963339,2323.25,8.592e-05,2]
[398902765,1765983963365,1515.13,8.592e-05,2]
[398902766,1765983963592,3838.38,9.001e-05,2]
[398902767,1765983963790,3838.38,9.41e-05,2]
[398902768,1765983964011,808.12,9.82e-05,2]
[398902769,1765983964039,3030.26,9.82e-05,2]
[398902770,1765983964215,3838.38,0.00010229,2]
[398902771,1765983964653,3131.37,0.00010638,2]
[398902772,1765983964678,707.01,0.00010638,2]
[398902773,1765983965597,3838.38,0.00011047,2]
[398902774,1765983965835,3838.38,0.00011456,2]
[398902775,1765983966058,1616.24,0.00011865,2]
[398902776,1765983966083,2222.14,0.00011865,2]
[398902797,1765984232273,-3838.38,0.00012274,2]
[398902798,1765984232284,-195.0,0.00012479,2]
[398902799,1765984232293,-1163.81040461,0.00012684,2]
[398902801,1765984232556,-427.13399201,0.00012684,2]
[398902802,1765984232568,-2247.43560338,0.00012684,2]
[398902803,1765984232579,-3838.38,0.00013093,2]
[398902804,1765984232589,-250.0,0.00013502,2]
[398902805,1765984232598,-195.0,0.00013502,2]
[398902806,1765984232607,-250.0,0.00013502,2]
[398902807,1765984232617,-194.66731831,0.00013502,2]
[398902808,1765984232626,-3838.38,0.00013502,2]
[398902809,1765984232635,-3838.38,0.00013911,2]
[398902810,1765984232644,-3838.38,0.0001432,2]
[398902811,1765984232654,-3838.38,0.00014729,2]
[398902812,1765984232663,-220.0,0.00014839,2]
[398902813,1765984232672,-540.0,0.0001488,2]
[398902814,1765984232681,-3838.38,0.00015139,2]
[398902815,1765984232690,-300.0,0.00015287,2]
[398902816,1765984232700,-431.0,0.00015288,2]
[398902817,1765984232709,-150.88226754,0.00015288,2]
[398902818,1765984232718,-500.0,0.00015288,2]
[398902819,1765984232728,-150.0,0.00015288,2]
[398902820,1765984232738,-500.0,0.00015288,2]
[398902821,1765984232751,-150.0,0.00015288,2]
[398902822,1765984232761,-153.17324755,0.00015288,2]
[398902823,1765984232770,-250.0,0.00015288,2]
[398902824,1765984232779,-500.0,0.00015288,2]
[398902825,1765984232789,-150.0,0.00015288,2]
[398902827,1765984232799,-150.0,0.00015288,2]
[398902829,1765984232809,-500.0,0.00015288,2]
[398902831,1765984232820,-500.0,0.00015288,2]
[398902833,1765984232829,-359.8374101,0.00015299,2]
[398902835,1765984232838,-301.13676512,0.000153,2]
[398902836,1765984232847,-106414.45931952,0.00015398,2]
[398902837,1765984232867,-392.94000407,0.00015398,2]
[398902838,1765984232878,-326.58769091,0.00015398,2]
[398902839,1765984232889,-466.29434677,0.00015398,2]
[398902840,1765984232900,-15619.01011208,0.00015398,2]
[398902841,1765984232911,-799.595,0.00015398,2]
[398902842,1765984232923,-1501.99056459,0.00015398,2]
[398902859,1765984238226,-1531.09602045,0.00015398,2]
[398902860,1765984238538,-20563.78800209,0.00015398,2]
[398902861,1765984238551,-857.53999978,0.00015398,2]
[398902862,1765984238563,-20616.37372892,0.00015398,2]
[398902863,1765984238575,-590910.32521082,0.00015398,2]
[398902864,1765984238586,-500.0,0.00015399,2]
[398902865,1765984238595,-1000.0,0.00015399,2]
[398902866,1765984238605,-1000.0,0.000154,2]
[398902867,1765984238615,-11286.81654884,0.000154,2]
[398902868,1765984238624,-240.20808912,0.000154,2]
[398902869,1765984238634,-5429.0363,0.000154,2]
[398902870,1765984238644,-431.0,0.00015425,2]
[398902871,1765984238653,-500.0,0.00015425,2]
[398902872,1765984238663,-150.0,0.00015425,2]
[398902874,1765984238672,-500.0,0.00015425,2]
[398902876,1765984238682,-150.0,0.00015425,2]
[398902877,1765984238691,-500.0,0.00015425,2]
[398902879,1765984238700,-192.33146188,0.00015425,2]
[398902882,1765984238710,-500.0,0.00015425,2]
[398902884,1765984238719,-500.0,0.00015425,2]
[398902886,1765984238730,-453.0,0.00015425,2]
[398902887,1765984238744,-500.0,0.00015425,2]
[398902888,1765984238755,-200.0,0.00015491,2]
[398902889,1765984238764,-200.0,0.00015491,2]
[398902890,1765984238774,-500.0,0.00015491,2]
[398902892,1765984238784,-500.0,0.00015491,2]
[398902894,1765984238794,-500.0,0.00015491,2]
[398902896,1765984238803,-500.0,0.00015491,2]
[398902898,1765984238813,-500.0,0.00015491,2]
[398902899,1765984238823,-500.0,0.00015491,2]
[398902900,1765984238833,-151.0,0.00015491,2]
[398902901,1765984238842,-151.0,0.00015497,2]
[398902902,1765984238852,-177.979,0.00015499,2]
[398902903,1765984238862,-150.79,0.00015499,2]
[398902904,1765984238871,-150.29,0.00015499,2]
[398902905,1765984238881,-150.68,0.00015499,2]
[398902906,1765984238890,-500.0,0.00015499,2]
[398902907,1765984238900,-500.0,0.00015499,2]
[398902908,1765984238910,-366.66358807,0.00015499,2]
[398902909,1765984238919,-500.0,0.00015499,2]
[398902910,1765984238928,-157.21968123,0.00015499,2]
[398902911,1765984238938,-209.04054246,0.00015499,2]
[398902912,1765984238947,-617.05510351,0.00015499,2]
[398902913,1765984238958,-500.0,0.00015499,2]
[398902914,1765984238968,-534.56287078,0.00015499,2]
[398902915,1765984238978,-500.0,0.00015499,2]
[398902916,1765984238993,-500.0,0.00015499,2]
[398902917,1765984239003,-500.0,0.00015499,2]
[398902918,1765984239013,-468.97910059,0.00015499,2]
[398902919,1765984239023,-2636.824,0.00015499,2]
[398902920,1765984239033,-500.0,0.00015499,2]
[398902921,1765984239043,-500.0,0.00015499,2]
[398902922,1765984239053,-500.0,0.00015499,2]
[398902923,1765984239063,-500.0,0.00015499,2]
[398902924,1765984239072,-500.0,0.00015499,2]
[398902925,1765984239082,-500.0,0.00015499,2]
[398902926,1765984239091,-500.0,0.00015499,2]
[398902927,1765984239101,-500.0,0.00015499,2]
[398902928,1765984239110,-500.0,0.00015499,2]
[398902929,1765984239120,-500.0,0.00015499,2]
[398902930,1765984239129,-500.0,0.00015499,2]
[398902931,1765984239139,-506.48,0.00015499,2]
[398902932,1765984239148,-500.0,0.00015499,2]
[398902933,1765984239158,-558.32,0.00015499,2]
[398902934,1765984239167,-500.0,0.00015499,2]
[398902935,1765984239177,-173.38039549,0.00015499,2]
[398902936,1765984239186,-500.0,0.00015499,2]
[398902937,1765984239195,-500.0,0.00015499,2]
[398902938,1765984239205,-500.0,0.00015499,2]
[398902939,1765984239214,-500.0,0.00015499,2]
[398902940,1765984239224,-500.0,0.00015499,2]
[398902941,1765984239235,-500.0,0.00015499,2]
[398902942,1765984239245,-500.0,0.00015499,2]
[398902943,1765984239254,-500.0,0.00015499,2]
[398902944,1765984239264,-500.0,0.00015499,2]
[398902945,1765984239273,-500.0,0.00015499,2]
[398902946,1765984239283,-500.0,0.00015499,2]
[398902947,1765984239292,-400.0,0.00015499,2]
[398902948,1765984239302,-500.0,0.00015499,2]
[398902949,1765984239312,-500.0,0.00015499,2]
[398902950,1765984239321,-500.0,0.00015499,2]
[398902951,1765984239331,-500.0,0.00015499,2]
[398902952,1765984239340,-500.0,0.00015499,2]
[398902953,1765984239351,-500.0,0.00015499,2]
[398902954,1765984239361,-500.0,0.00015499,2]
[398902955,1765984239371,-500.0,0.00015499,2]
[398902956,1765984239380,-500.0,0.00015499,2]
[398902957,1765984239391,-321.85151073,0.00015499,2]
[398902958,1765984239401,-507.81620349,0.00015499,2]
[398902959,1765984239410,-500.0,0.00015499,2]
[398902960,1765984239420,-600.0,0.000155,2]
[398902961,1765984239429,-500.0,0.00015507,2]
[398902962,1765984239439,-6957.06,0.00015548,2]
[398902963,1765984239450,-150.0,0.00015548,2]
[398902964,1765984239460,-200.0,0.00015548,2]
[398902965,1765984239469,-239.64,0.00015548,2]
[398902966,1765984239481,-13692.05,0.00015548,2]
[398902967,1765984239490,-553.86,0.00015548,2]
[398902968,1765984239499,-992.69,0.00015548,2]
[398902969,1765984239509,-4533.35,0.00015548,2]
[398902970,1765984239518,-14438.39,0.00015548,2]
[398902971,1765984239527,-3838.38,0.00015548,2]
[398902972,1765984239536,-431.0,0.00015562,2]
[398902973,1765984239546,-500.0,0.00015562,2]
[398902974,1765984239556,-500.0,0.00015562,2]
[398902975,1765984239565,-150.0,0.00015562,2]
[398902976,1765984239575,-500.0,0.00015562,2]
[398902977,1765984239584,-500.0,0.00015562,2]
[398902978,1765984239594,-453.0,0.00015562,2]
[398902979,1765984239603,-500.0,0.00015562,2]
[398902980,1765984239613,-500.0,0.00015599,2]
[398902981,1765984239622,-500.0,0.00015599,2]
[398902982,1765984239631,-500.0,0.00015599,2]
[398902983,1765984239640,-500.0,0.00015599,2]
[398902984,1765984239649,-500.0,0.00015599,2]
[398902985,1765984239658,-500.0,0.00015599,2]
[398902986,1765984239667,-1336.07,0.00015599,2]
[398902987,1765984239676,-1336.07,0.00015599,2]
[398902988,1765984239686,-1336.07,0.00015599,2]
[398902989,1765984239695,-500.0,0.00015599,2]
[398902990,1765984239704,-500.0,0.00015599,3]
[398902991,1765984239713,-500.0,0.00015599,4]
[398902992,1765984239723,-500.0,0.00015599,2]
[398902993,1765984239735,-431.0,0.00015699,2]
[398902994,1765984239745,-500.0,0.00015699,2]
[398902995,1765984239757,-500.0,0.00015699,2]
[398902996,1765984239766,-150.0,0.00015699,2]
[398902997,1765984239775,-500.0,0.00015699,2]
[398902998,1765984239785,-378.96945875,0.00015699,2]
[398902999,1765984239794,-453.0,0.00015699,2]
[398903000,1765984239803,-500.0,0.00015699,2]
[398903001,1765984239813,-515.02785711,0.00015699,2]
[398903002,1765984239822,-500.0,0.00015699,2]
[398903003,1765984239831,-500.0,0.00015699,2]
[398903004,1765984239840,-516.74047021,0.00015699,2]
[398903005,1765984239849,-500.0,0.00015699,2]
[398903006,1765984239859,-550.52788879,0.00015699,2]
[398903007,1765984239868,-514.23721699,0.00015699,2]
[398903008,1765984239878,-500.0,0.00015699,2]
[398903009,1765984239887,-500.0,0.00015699,2]
[398903010,1765984239897,-500.0,0.00015699,2]
[398903011,1765984239906,-500.0,0.00015699,2]
[398903012,1765984239916,-286.90864955,0.00015699,2]
[398903013,1765984239925,-500.0,0.00015699,2]
[398903014,1765984239934,-500.0,0.00015699,2]
[398903015,1765984239943,-500.0,0.00015699,2]
[398903016,1765984239953,-500.0,0.00015699,2]
[398903017,1765984239962,-506.48,0.00015773,2]
[398903018,1765984239972,-431.0,0.00015836,2]
[398903019,1765984239983,-500.0,0.00015836,2]
[398903020,1765984239993,-500.0,0.00015836,2]
[398903021,1765984240002,-285.5381019,0.00015836,2]
[398903022,1765984240011,-500.0,0.00015836,2]
[398903023,1765984240021,-453.0,0.00015836,2]
[398903024,1765984240030,-558.25084731,0.00015836,2]
[398903025,1765984240040,-2351.72804844,0.000159,2]
[398903026,1765984240049,-2351.72804841,0.000159,2]
[398903027,1765984240059,-2351.72804841,0.000159,2]
[398903028,1765984240069,-2351.72804841,0.000159,2]
[398903029,1765984240079,-2351.72804841,0.000159,2]
[398903032,1765984240095,-2351.72804841,0.000159,2]
[398903034,1765984240108,-11286.81654877,0.00015943,2]
[398903036,1765984240118,-431.0,0.00015973,2]
[398903037,1765984240127,-500.0,0.00015973,2]
[398903039,1765984240136,-500.0,0.00015973,2]
[398903041,1765984240146,-500.0,0.00015973,2]
[398903043,1765984240156,-453.0,0.00015973,2]
[398903044,1765984240165,-751.94959309,0.00016,2]
[398903045,1765984240175,-506.48,0.00016047,2]
[398903046,1765984240184,-600.0,0.00016048,2]
[398903047,1765984240194,-431.0,0.0001611,2]
[398903048,1765984240203,-500.0,0.0001611,2]
[398903049,1765984240213,-500.0,0.0001611,2]
[398903050,1765984240222,-500.0,0.0001611,2]
[398903051,1765984240233,-453.0,0.0001611,2]
[398903052,1765984240243,-200.0,0.00016117,2]
[398903054,1765984240252,-207.4,0.00016117,2]
[398903055,1765984240261,-215.0738,0.00016117,2]
[398903056,1765984240272,-151.0,0.00016117,2]
[398903057,1765984240281,-223.0315306,0.00016117,2]
[398903058,1765984240293,-231.28369723,0.00016117,2]
[398903059,1765984240302,-239.84119403,0.00016117,2]
[398903060,1765984240312,-248.71531821,0.00016117,2]
[398903061,1765984240322,-2112.0,0.00016117,2]
[398903062,1765984240332,-257.91778498,0.00016117,2]
[398903063,1765984240341,-500.0,0.00016117,2]
[398903064,1765984240351,-151.0,0.00016117,2]
[398903065,1765984240361,-496.01581523,0.00016117,2]
[398903066,1765984240370,-2000.0,0.00016117,2]
[398903067,1765984240380,-613.91086761,0.00016117,2]
[398903068,1765984240389,-1063.30233005,0.00016117,2]
[398903069,1765984240398,-300.0,0.00016117,2]
[398903070,1765984240408,-1000.0,0.00016117,2]
[398903071,1765984240417,-250.0,0.00016117,2]
[398903072,1765984240427,-1000.0,0.00016117,2]
[398903073,1765984240436,-1000.0,0.00016117,2]
[398903074,1765984240445,-500.0,0.00016117,2]
[398903075,1765984240459,-533.88981491,0.00016117,2]
[398903076,1765984240469,-1000.0,0.00016117,2]
[398903077,1765984240478,-250.0,0.00016117,2]
[398903078,1765984240489,-500.0,0.00016117,2]
[398903079,1765984240499,-1000.0,0.00016117,2]
[398903080,1765984240508,-1000.0,0.00016117,2]
[398903081,1765984240517,-250.0,0.00016117,2]
[398903082,1765984240527,-571.16053015,0.00016117,2]
[398903083,1765984240536,-1500.0,0.00016117,2]
[398903084,1765984240545,-1000.0,0.00016117,2]
[398903085,1765984240555,-1000.0,0.00016117,2]
[398903086,1765984240564,-1000.0,0.00016117,2]
[398903087,1765984240573,-1000.0,0.00016117,2]
[398903088,1765984240583,-1000.0,0.00016117,2]
[398903089,1765984240592,-332.07048365,0.00016117,2]
[398903090,1765984240601,-1000.0,0.00016117,2]
[398903091,1765984240612,-1000.0,0.00016117,2]
[398903092,1765984240622,-500.0,0.00016117,2]
[398903093,1765984240633,-1000.0,0.00016117,2]
[398903094,1765984240643,-500.0,0.00016117,2]
[398903095,1765984240653,-1000.0,0.00016117,2]
[398903096,1765984240665,-509.33088401,0.00016117,2]
[398903097,1765984240674,-1000.0,0.00016117,2]
[398903098,1765984240685,-500.0,0.00016117,2]
[398903099,1765984240695,-3525.84640427,0.00016117,2]
[398903100,1765984240705,-620.0,0.00016117,2]
[398903101,1765984240717,-151.0,0.00016117,2]
[398903102,1765984240727,-578.20924308,0.00016117,2]
[398903103,1765984240737,-184.0,0.00016183,2]
[398903104,1765984240751,-1000.0,0.0001621,2]
[398903106,1765984240760,-250.0,0.00016219,2]
[398903108,1765984240769,-431.0,0.00016247,2]
[398903110,1765984240778,-500.0,0.00016247,2]
[398903112,1765984240788,-500.0,0.00016247,2]
[398903114,1765984240797,-500.0,0.00016247,2]
[398903116,1765984240806,-453.0,0.00016247,2]
[398903118,1765984240816,-506.48,0.00016321,2]
[398903120,1765984240829,-431.0,0.00016384,2]
[398903122,1765984240838,-500.0,0.00016384,2]
[398903124,1765984240848,-500.0,0.00016384,2]
[398903126,1765984240858,-500.0,0.00016384,2]
[398903128,1765984240867,-453.0,0.00016384,2]
[398903130,1765984240877,-239.64,0.00016411,2]
[398903133,1765984240886,-510.0,0.00016418,2]
[398903135,1765984240896,-300.0,0.00016438,2]
[398903137,1765984240905,-300.0,0.00016438,2]
[398903139,1765984240914,-300.0,0.00016438,2]
[398903141,1765984240923,-300.0,0.00016438,2]
[398903142,1765984240932,-300.0,0.00016438,2]
[398903145,1765984240943,-300.0,0.00016438,2]
[398903147,1765984240952,-300.0,0.00016438,2]
[398903148,1765984240962,-300.0,0.00016438,2]
[398903149,1765984240971,-300.0,0.00016438,2]
[398903150,1765984240987,-300.0,0.00016438,2]
[398903151,1765984240996,-300.0,0.00016438,2]
[398903152,1765984241006,-300.0,0.00016438,2]
[398903153,1765984241015,-300.0,0.00016438,2]
[398903154,1765984241029,-300.0,0.00016438,2]
[398903155,1765984241038,-300.0,0.00016438,2]
[398903156,1765984241047,-300.0,0.00016438,2]
[398903157,1765984241057,-300.0,0.00016438,2]
[398903158,1765984241066,-300.0,0.00016438,2]
[398903159,1765984241076,-300.0,0.00016438,2]
[398903160,1765984241086,-300.0,0.00016438,2]
[398903161,1765984241636,-300.0,0.00016438,2]
[398903162,1765984241650,-300.0,0.00016438,2]
[398903163,1765984241659,-197.26900433,0.00016438,2]
[398903164,1765984241668,-500.0,0.00016438,2]
[398903165,1765984241678,-500.0,0.00016438,2]
[398903166,1765984241687,-500.0,0.00016438,2]
[398903167,1765984241696,-500.0,0.00016438,2]
[398903168,1765984241705,-500.0,0.00016438,2]
[398903169,1765984241714,-500.0,0.00016438,2]
[398903170,1765984241724,-500.0,0.00016438,2]
[398903171,1765984241734,-500.0,0.00016438,2]
[398903172,1765984241745,-500.0,0.00016438,2]
[398903173,1765984241760,-500.0,0.00016438,2]
[398903174,1765984241770,-500.0,0.00016438,2]
[398903175,1765984241779,-500.0,0.00016438,2]
[398903176,1765984241788,-500.0,0.00016438,2]
[398903177,1765984241798,-500.0,0.00016438,2]
[398903178,1765984241808,-500.0,0.00016438,2]
[398903179,1765984241818,-500.0,0.00016438,2]
[398903180,1765984241827,-500.0,0.00016438,2]
[398903181,1765984241836,-500.0,0.00016438,2]
[398903182,1765984241846,-500.0,0.00016438,2]
[398903183,1765984241855,-500.0,0.00016438,2]
[398903184,1765984241864,-500.0,0.00016438,2]
[398903185,1765984241874,-500.0,0.00016438,2]
[398903186,1765984241883,-500.0,0.00016438,2]
[398903187,1765984241893,-500.0,0.00016438,2]
[398903188,1765984241903,-500.0,0.00016438,2]
[398903189,1765984241912,-500.0,0.00016438,2]
[398903190,1765984241921,-500.0,0.00016438,2]
[398903191,1765984241931,-500.0,0.00016438,2]
[398903192,1765984241940,-500.0,0.00016438,2]
[398903193,1765984241949,-500.0,0.00016438,2]
[398903194,1765984241958,-356.32563495,0.00016438,2]
[398903195,1765984241967,-500.0,0.00016438,2]
[398903196,1765984241977,-500.0,0.00016438,2]
[398903197,1765984241987,-500.0,0.00016438,2]
[398903198,1765984241996,-500.0,0.00016438,2]
[398903199,1765984242006,-500.0,0.00016438,2]
[398903200,1765984242016,-500.0,0.00016438,2]
[398903201,1765984242025,-500.0,0.00016438,2]
[398903202,1765984242034,-500.0,0.00016438,2]
[398903203,1765984242044,-500.0,0.00016438,2]
[398903204,1765984242054,-500.0,0.00016438,2]
[398903205,1765984242063,-500.0,0.00016438,2]
[398903206,1765984242072,-500.0,0.00016438,2]
[398903207,1765984242082,-500.0,0.00016438,2]
[398903208,1765984242091,-500.0,0.00016438,2]
[398903209,1765984242101,-500.0,0.00016438,2]
[398903210,1765984242112,-500.0,0.00016438,2]
[398903211,1765984242121,-500.0,0.00016438,2]
[398903212,1765984242130,-500.0,0.00016438,2]
[398903213,1765984242140,-500.0,0.00016438,2]
[398903214,1765984242151,-500.0,0.00016438,2]
[398903215,1765984242160,-500.0,0.00016438,2]
[398903216,1765984242170,-500.0,0.00016438,2]
[398903217,1765984242180,-500.0,0.00016438,2]
[398903218,1765984242190,-500.0,0.00016438,2]
[398903219,1765984242200,-500.0,0.00016438,2]
[398903220,1765984242210,-500.0,0.00016438,2]
[398903221,1765984242219,-500.0,0.00016438,2]
[398903222,1765984242229,-500.0,0.00016438,2]
[398903223,1765984242239,-500.0,0.00016438,2]
[398903224,1765984242249,-500.0,0.00016438,2]
[398903225,1765984242259,-500.0,0.00016438,2]
[398903226,1765984242268,-500.0,0.00016438,2]
[398903227,1765984242278,-500.0,0.00016438,2]
[398903228,1765984242287,-500.0,0.00016438,2]
[398903229,1765984242298,-500.0,0.00016438,2]
[398903230,1765984242307,-500.0,0.00016438,2]
[398903231,1765984242317,-500.0,0.00016438,2]
[398903232,1765984242327,-500.0,0.00016438,2]
[398903233,1765984242336,-500.0,0.00016438,2]
[398903234,1765984242345,-500.0,0.00016438,2]
[398903235,1765984242354,-500.0,0.00016438,2]
[398903236,1765984242363,-500.0,0.00016438,2]
[398903237,1765984242372,-500.0,0.00016438,2]
[398903238,1765984242382,-500.0,0.00016438,2]
[398903239,1765984242391,-600.0,0.00016438,2]
[398903240,1765984242400,-500.0,0.00016438,2]
[398903241,1765984242410,-500.0,0.00016438,2]
[398903242,1765984242420,-500.0,0.00016438,2]
[398903243,1765984242429,-500.0,0.00016438,2]
[398903244,1765984242439,-500.0,0.00016438,2]
[398903245,1765984242448,-500.0,0.00016438,2]
[398903246,1765984242457,-500.0,0.00016438,2]
[398903247,1765984242467,-500.0,0.00016438,2]
[398903248,1765984242476,-500.0,0.00016438,2]
[398903249,1765984242487,-11286.81654877,0.00016486,2]
[398903250,1765984242496,-431.0,0.00016521,2]
[398903251,1765984242505,-500.0,0.00016521,2]
[398903252,1765984242514,-500.0,0.00016521,2]
[398903253,1765984242524,-500.0,0.00016521,2]
[398903254,1765984242533,-453.0,0.00016521,2]
[398903255,1765984242543,-506.48,0.00016595,2]
[398903256,1765984242552,-600.0,0.00016596,2]
[398903257,1765984242561,-431.0,0.00016658,2]
[398903258,1765984242571,-500.0,0.00016658,2]
[398903259,1765984242580,-500.0,0.00016658,2]
[398903260,1765984242589,-500.0,0.00016658,2]
[398903261,1765984242598,-453.0,0.00016658,2]
[398903262,1765984242607,-284.78783801,0.00016665,2]
[398903263,1765984242617,-2112.0,0.00016665,2]
[398903264,1765984242626,-162.66553992,0.00016665,2]
[398903265,1765984242635,-553.64373807,0.00016665,2]
[398903266,1765984242644,-1377.0,0.00016776,2]
[398903267,1765984242653,-2435.001,0.00016776,2]
[398903268,1765984242663,-4799.0,0.00016776,2]
[398903269,1765984242672,-563.0,0.00016776,2]
[398903270,1765984242680,-431.0,0.00016795,2]
[398903271,1765984242690,-500.0,0.00016795,2]
[398903272,1765984242699,-500.0,0.00016795,2]
[398903273,1765984242708,-500.0,0.00016795,2]
[398903274,1765984242717,-453.0,0.00016795,2]
[398903275,1765984242726,-481.46730423,0.00016858,3]
[398903276,1765984242736,-500.0,0.00016895,2]
[398903277,1765984242751,-1336.07,0.00016895,2]
[398903278,1765984242760,-500.0,0.00016895,5]
[398903279,1765984242769,-900.0,0.00016917,2]
[398903280,1765984242778,-431.0,0.00016932,2]
[398903281,1765984242788,-500.0,0.00016932,2]
[398903282,1765984242797,-500.0,0.00016932,2]
[398903283,1765984242806,-500.0,0.00016932,2]
[398903284,1765984242816,-453.0,0.00016932,2]
[398903285,1765984242826,-500.0,0.00016938,2]
[398903286,1765984242835,-500.0,0.00016938,2]
[398903287,1765984242844,-500.0,0.00016938,2]
[398903288,1765984242854,-151.12198165,0.0001695,2]
[398903289,1765984242863,-506.79331904,0.00016973,2]
[398903290,1765984242872,-500.0,0.00016973,2]
[398903291,1765984242881,-500.0,0.00016973,2]
[398903292,1765984242891,-379.34447673,0.00016973,2]
[398903293,1765984242900,-300.33484235,0.00016973,2]
[398903294,1765984242909,-500.0,0.00016973,2]
[398903295,1765984242918,-500.0,0.00016973,2]
[398903296,1765984242927,-500.0,0.00016973,2]
[398903297,1765984242937,-500.0,0.00016973,2]
[398903298,1765984242946,-481.46730423,0.00016982,2]
[398903299,1765984242955,-500.0,0.00016986,2]
[398903300,1765984242965,-1336.07,0.00016999,2]
[398903301,1765984242975,-1336.07,0.00016999,2]
[398903302,1765984242985,-1336.07,0.00016999,2]
[398903303,1765984242994,-1336.07,0.00016999,2]
[398903305,1765984243004,-500.0,0.00016999,6]
[398903306,1765984243013,-500.0,0.00016999,7]
[398903307,1765984243022,-11286.81654877,0.0001703,2]
[398903308,1765984243031,-431.0,0.00017069,2]
[398903309,1765984243041,-500.0,0.00017069,2]
[398903310,1765984243050,-500.0,0.00017069,2]
[398903311,1765984243059,-500.0,0.00017069,2]
[398903312,1765984243068,-453.0,0.00017069,2]
[398903313,1765984243077,-240.20808911,0.00017122,2]
[398903314,1765984243086,-600.0,0.00017144,2]
[398903315,1765984243096,-723.06557554,0.00017199,2]